[Event "Titled Tuesday Blitz May 03 Early 2022"]
[White "Lashkin, Jegor"]
[Black "Osmak, Yuliia"]
[WhiteFideId "13907808"]
[BlackFideId "14101602"]
[WhiteElo "2368"]
[BlackElo "2302"]
[Result "1-0"]
[Round "06"]
[TimeControl "180+1"]
[Date "2022.05.03"]
[WhiteClock "0:00:10"]
[BlackClock "0:00:07"]

1. Nf3 {[%clk 0:03:00]}  d6 {[%clk 0:02:57]} 2. d4 {[%clk 0:02:58]}  Bg4 {[%clk 0:02:56]} 3. c4 {[%clk 0:02:56]}  Bxf3 {[%clk 0:02:55]} 4. exf3 {[%clk 0:02:56]}  e6 {[%clk 0:02:54]} 5. Nc3 {[%clk 0:02:56]}  Nf6 {[%clk 0:02:53]} 6. d5 {[%clk 0:02:56]}  e5 {[%clk 0:02:52]} 7. Bd3 {[%clk 0:02:52]}  g6 {[%clk 0:02:50]} 8. O-O {[%clk 0:02:50]}  Bg7 {[%clk 0:02:50]} 9. f4 {[%clk 0:02:50]}  Nbd7 {[%clk 0:02:46]} 10. Re1 {[%clk 0:02:43]}  O-O {[%clk 0:02:45]} 11. h3 {[%clk 0:02:42]}  Re8 {[%clk 0:02:33]} 12. Be3 {[%clk 0:02:25]}  exf4 {[%clk 0:02:23]} 13. Bxf4 {[%clk 0:02:26]}  Rxe1+ {[%clk 0:02:22]} 14. Qxe1 {[%clk 0:02:27]}  Nc5 {[%clk 0:02:18]} 15. Be2 {[%clk 0:02:21]}  Nfe4 {[%clk 0:02:10]} 16. Nxe4 {[%clk 0:02:17]}  Nxe4 {[%clk 0:02:10]} 17. Bf3 {[%clk 0:01:59]}  Nc5 {[%clk 0:02:05]} 18. Qd2 {[%clk 0:01:59]}  Qf6 {[%clk 0:02:02]} 19. Rb1 {[%clk 0:01:56]}  Re8 {[%clk 0:01:49]} 20. b4 {[%clk 0:01:50]}  Nd7 {[%clk 0:01:39]} 21. Bg4 {[%clk 0:01:25]}  Ne5 {[%clk 0:01:27]} 22. Re1 {[%clk 0:01:25]}  Nf3+ {[%clk 0:01:12]} 23. Bxf3 {[%clk 0:01:18]}  Rxe1+ {[%clk 0:01:13]} 24. Qxe1 {[%clk 0:01:18]}  Qxf4 {[%clk 0:01:13]} 25. Qe8+ {[%clk 0:00:49]}  Bf8 {[%clk 0:01:14]} 26. Qe2 {[%clk 0:00:46]}  Qc1+ {[%clk 0:01:05]} 27. Kh2 {[%clk 0:00:45]}  Qc3 {[%clk 0:01:04]} 28. b5 {[%clk 0:00:36]}  h5 {[%clk 0:01:03]} 29. h4 {[%clk 0:00:34]}  Qd4 {[%clk 0:00:38]} 30. g3 {[%clk 0:00:33]}  Bg7 {[%clk 0:00:36]} 31. Qe8+ {[%clk 0:00:31]}  Kh7 {[%clk 0:00:36]} 32. Kg2 {[%clk 0:00:29]}  f5 {[%clk 0:00:23]} 33. Qe2 {[%clk 0:00:20]}  Qe5 {[%clk 0:00:20]} 34. Qd2 {[%clk 0:00:17]}  Qd4 {[%clk 0:00:18]} 35. Qe2 {[%clk 0:00:17]}  Be5 {[%clk 0:00:17]} 36. Qc2 {[%clk 0:00:12]}  Kg7 {[%clk 0:00:16]} 37. Qe2 {[%clk 0:00:11]}  Kf6 {[%clk 0:00:16]} 38. Qc2 {[%clk 0:00:11]}  f4 {[%clk 0:00:15]} 39. g4 {[%clk 0:00:10]}  hxg4 {[%clk 0:00:15]} 40. Bxg4 {[%clk 0:00:10]}  Kg7 {[%clk 0:00:14]} 41. Bf3 {[%clk 0:00:10]}  Bf6 {[%clk 0:00:14]} 42. h5 {[%clk 0:00:09]}  gxh5 {[%clk 0:00:07]} 43. Bxh5 {[%clk 0:00:10]}  Qe5 {[%clk 0:00:07]} 44. Qg6+ {[%clk 0:00:10]}  Kf8 {[%clk 0:00:07]} 45. Qf7# {[%clk 0:00:10]} 1-0


[Site "https://www.chess.com"]

[Event "Titled Tuesday Blitz May 03 Early 2022"]
[White "Lazavik, Denis"]
[Black "Bok, Benjamin"]
[WhiteFideId "13515110"]
[BlackFideId "1017063"]
[WhiteElo "2437"]
[BlackElo "2658"]
[Result "1/2-1/2"]
[Round "06"]
[TimeControl "180+1"]
[Date "2022.05.03"]
[WhiteClock "0:00:14"]
[BlackClock "0:00:02"]

1. d4 {[%clk 0:03:00]}  d5 {[%clk 0:02:59]} 2. c4 {[%clk 0:03:01]}  c6 {[%clk 0:03:00]} 3. Nf3 {[%clk 0:03:01]}  Nf6 {[%clk 0:03:00]} 4. e3 {[%clk 0:03:01]}  Bf5 {[%clk 0:03:00]} 5. Nc3 {[%clk 0:03:01]}  e6 {[%clk 0:03:01]} 6. Nh4 {[%clk 0:03:01]}  Be4 {[%clk 0:03:01]} 7. f3 {[%clk 0:03:00]}  Bg6 {[%clk 0:03:02]} 8. Qb3 {[%clk 0:03:00]}  Qc7 {[%clk 0:03:00]} 9. Bd2 {[%clk 0:02:59]}  Be7 {[%clk 0:03:00]} 10. O-O-O {[%clk 0:02:57]}  dxc4 {[%clk 0:02:54]} 11. Bxc4 {[%clk 0:02:57]}  b5 {[%clk 0:02:50]} 12. Be2 {[%clk 0:02:57]}  a6 {[%clk 0:02:50]} 13. Nxg6 {[%clk 0:02:56]}  hxg6 {[%clk 0:02:50]} 14. Kb1 {[%clk 0:02:55]}  c5 {[%clk 0:02:49]} 15. dxc5 {[%clk 0:02:46]}  Nbd7 {[%clk 0:02:49]} 16. e4 {[%clk 0:02:37]}  Nxc5 {[%clk 0:02:47]} 17. Qc2 {[%clk 0:02:38]}  O-O {[%clk 0:02:40]} 18. Be3 {[%clk 0:02:22]}  Rfc8 {[%clk 0:02:23]} 19. Rc1 {[%clk 0:02:19]}  Qb7 {[%clk 0:02:11]} 20. Qd2 {[%clk 0:00:49]}  Rc7 {[%clk 0:02:00]} 21. Nd1 {[%clk 0:00:44]}  Rd8 {[%clk 0:01:17]} 22. Qe1 {[%clk 0:00:42]}  Na4 {[%clk 0:01:14]} 23. Nf2 {[%clk 0:00:26]}  Bc5 {[%clk 0:00:47]} 24. Bxc5 {[%clk 0:00:23]}  Rxc5 {[%clk 0:00:48]} 25. Rxc5 {[%clk 0:00:23]}  Nxc5 {[%clk 0:00:49]} 26. Qb4 {[%clk 0:00:21]}  Qb6 {[%clk 0:00:47]} 27. Rd1 {[%clk 0:00:20]}  Rxd1+ {[%clk 0:00:44]} 28. Nxd1 {[%clk 0:00:20]}  Ncd7 {[%clk 0:00:44]} 29. Qe1 {[%clk 0:00:17]}  Qd4 {[%clk 0:00:41]} 30. Qf2 {[%clk 0:00:14]}  Qd6 {[%clk 0:00:35]} 31. g3 {[%clk 0:00:12]}  g5 {[%clk 0:00:30]} 32. Qe3 {[%clk 0:00:12]}  Qc5 {[%clk 0:00:30]} 33. Qxc5 {[%clk 0:00:12]}  Nxc5 {[%clk 0:00:30]} 34. Nf2 {[%clk 0:00:09]}  Kf8 {[%clk 0:00:30]} 35. b4 {[%clk 0:00:08]}  Na4 {[%clk 0:00:29]} 36. Kc2 {[%clk 0:00:08]}  Ke7 {[%clk 0:00:29]} 37. Nd3 {[%clk 0:00:07]}  Nd7 {[%clk 0:00:24]} 38. a3 {[%clk 0:00:07]}  Kd6 {[%clk 0:00:23]} 39. f4 {[%clk 0:00:07]}  gxf4 {[%clk 0:00:22]} 40. gxf4 {[%clk 0:00:08]}  f6 {[%clk 0:00:22]} 41. Bf3 {[%clk 0:00:07]}  Nab6 {[%clk 0:00:20]} 42. Bd1 {[%clk 0:00:06]}  Nc4 {[%clk 0:00:19]} 43. a4 {[%clk 0:00:05]}  bxa4 {[%clk 0:00:19]} 44. Kc3 {[%clk 0:00:06]}  Ncb6 {[%clk 0:00:14]} 45. Kb2 {[%clk 0:00:06]}  e5 {[%clk 0:00:11]} 46. f5 {[%clk 0:00:07]}  Nc4+ {[%clk 0:00:07]} 47. Kc3 {[%clk 0:00:07]}  Ndb6 {[%clk 0:00:06]} 48. Nc5 {[%clk 0:00:06]}  a3 {[%clk 0:00:05]} 49. Bb3 {[%clk 0:00:05]}  Ne3 {[%clk 0:00:04]} 50. Nxa6 {[%clk 0:00:05]}  Nf1 {[%clk 0:00:04]} 51. h4 {[%clk 0:00:05]}  Ng3 {[%clk 0:00:04]} 52. Kd3 {[%clk 0:00:05]}  Nh5 {[%clk 0:00:04]} 53. Nc5 {[%clk 0:00:05]}  Nf4+ {[%clk 0:00:04]} 54. Kd2 {[%clk 0:00:05]}  Ng2 {[%clk 0:00:05]} 55. h5 {[%clk 0:00:05]}  Nf4 {[%clk 0:00:05]} 56. Kc2 {[%clk 0:00:04]}  Nxh5 {[%clk 0:00:05]} 57. Ne6 {[%clk 0:00:04]}  Kc6 {[%clk 0:00:04]} 58. Kc3 {[%clk 0:00:03]}  Kb5 {[%clk 0:00:04]} 59. Nc7+ {[%clk 0:00:03]}  Kc6 {[%clk 0:00:04]} 60. Ne6 {[%clk 0:00:04]}  Kd6 {[%clk 0:00:04]} 61. Ba2 {[%clk 0:00:03]}  Ke7 {[%clk 0:00:03]} 62. Kb3 {[%clk 0:00:04]}  Ng3 {[%clk 0:00:03]} 63. Nxg7 {[%clk 0:00:04]}  Nxe4 {[%clk 0:00:03]} 64. Kxa3 {[%clk 0:00:05]}  Nd6 {[%clk 0:00:02]} 65. Bb1 {[%clk 0:00:05]}  e4 {[%clk 0:00:02]} 66. Kb3 {[%clk 0:00:05]}  e3 {[%clk 0:00:03]} 67. Kc3 {[%clk 0:00:04]}  Nd5+ {[%clk 0:00:03]} 68. Kd3 {[%clk 0:00:04]}  e2 {[%clk 0:00:02]} 69. Kxe2 {[%clk 0:00:04]}  Nc3+ {[%clk 0:00:02]} 70. Kf3 {[%clk 0:00:04]}  Nxb1 {[%clk 0:00:03]} 71. Nh5 {[%clk 0:00:04]}  Nc3 {[%clk 0:00:03]} 72. b5 {[%clk 0:00:04]}  Ncxb5 {[%clk 0:00:02]} 73. Kf4 {[%clk 0:00:05]}  Ne8 {[%clk 0:00:03]} 74. Nxf6 {[%clk 0:00:04]}  Nxf6 {[%clk 0:00:02]} 75. Ke5 {[%clk 0:00:05]}  Nd6 {[%clk 0:00:03]} 76. Kf4 {[%clk 0:00:06]}  Nf7 {[%clk 0:00:03]} 77. Ke3 {[%clk 0:00:06]}  Kd6 {[%clk 0:00:04]} 78. Kd4 {[%clk 0:00:07]}  Kc6 {[%clk 0:00:04]} 79. Kc4 {[%clk 0:00:07]}  Ne5+ {[%clk 0:00:05]} 80. Kc3 {[%clk 0:00:07]}  Kc5 {[%clk 0:00:05]} 81. Kb3 {[%clk 0:00:08]}  Nc6 {[%clk 0:00:05]} 82. Kc3 {[%clk 0:00:08]}  Nb4 {[%clk 0:00:06]} 83. Kb3 {[%clk 0:00:09]}  Nbd5 {[%clk 0:00:06]} 84. Kc2 {[%clk 0:00:09]}  Kc4 {[%clk 0:00:06]} 85. Kd2 {[%clk 0:00:09]}  Kd4 {[%clk 0:00:07]} 86. Kc2 {[%clk 0:00:10]}  Ke3 {[%clk 0:00:07]} 87. Kb3 {[%clk 0:00:09]}  Kd3 {[%clk 0:00:08]} 88. Kb2 {[%clk 0:00:10]}  Ne3 {[%clk 0:00:07]} 89. Kb3 {[%clk 0:00:10]}  Nc2 {[%clk 0:00:08]} 90. Kb2 {[%clk 0:00:11]}  Nd4 {[%clk 0:00:08]} 91. Kc1 {[%clk 0:00:10]}  Ke2 {[%clk 0:00:08]} 92. Kb2 {[%clk 0:00:10]}  Kd2 {[%clk 0:00:09]} 93. Ka3 {[%clk 0:00:11]}  Kc3 {[%clk 0:00:09]} 94. Ka4 {[%clk 0:00:11]}  Kc4 {[%clk 0:00:09]} 95. Ka3 {[%clk 0:00:12]}  Nc2+ {[%clk 0:00:07]} 96. Kb2 {[%clk 0:00:12]}  Nb4 {[%clk 0:00:07]} 97. Kc1 {[%clk 0:00:12]}  Kc3 {[%clk 0:00:07]} 98. Kd1 {[%clk 0:00:13]}  Kd3 {[%clk 0:00:07]} 99. Kc1 {[%clk 0:00:13]}  Nc2 {[%clk 0:00:05]} 100. Kb2 {[%clk 0:00:13]}  Nd4 {[%clk 0:00:04]} 101. Ka3 {[%clk 0:00:13]}  Kc3 {[%clk 0:00:03]} 102. Ka4 {[%clk 0:00:14]}  Kc4 {[%clk 0:00:02]} 103. Ka5 {[%clk 0:00:14]}  Kc5 {[%clk 0:00:02]} 104. Ka4 {[%clk 0:00:14]}  Kc4 {[%clk 0:00:02]} 1/2-1/2


[Site "https://www.chess.com"]

[Event "Titled Tuesday Blitz May 03 Early 2022"]
[White "Leiva, Gianmarco"]
[Black "Khabinets, Ivan"]
[WhiteFideId "3804399"]
[BlackFideId "14115980"]
[WhiteElo "2323"]
[BlackElo "2114"]
[Result "1-0"]
[Round "06"]
[TimeControl "180+1"]
[Date "2022.05.03"]
[WhiteClock "0:00:22"]
[BlackClock "0:00:48"]

1. Nf3 {[%clk 0:02:50]}  d5 {[%clk 0:02:58]} 2. g3 {[%clk 0:02:51]}  g6 {[%clk 0:02:57]} 3. Bg2 {[%clk 0:02:51]}  Bg7 {[%clk 0:02:58]} 4. O-O {[%clk 0:02:47]}  e5 {[%clk 0:02:57]} 5. c4 {[%clk 0:02:46]}  d4 {[%clk 0:02:56]} 6. d3 {[%clk 0:02:44]}  Ne7 {[%clk 0:02:56]} 7. e3 {[%clk 0:02:39]}  c5 {[%clk 0:02:53]} 8. exd4 {[%clk 0:02:37]}  cxd4 {[%clk 0:02:54]} 9. b4 {[%clk 0:02:34]}  O-O {[%clk 0:02:51]} 10. Re1 {[%clk 0:02:34]}  Qc7 {[%clk 0:02:43]} 11. Nbd2 {[%clk 0:02:29]}  a5 {[%clk 0:02:42]} 12. b5 {[%clk 0:02:19]}  Nd7 {[%clk 0:02:41]} 13. a4 {[%clk 0:02:19]}  Nc5 {[%clk 0:02:37]} 14. Nb3 {[%clk 0:02:19]}  Nxb3 {[%clk 0:02:30]} 15. Qxb3 {[%clk 0:02:18]}  Re8 {[%clk 0:02:31]} 16. b6 {[%clk 0:01:53]}  Qb8 {[%clk 0:02:30]} 17. Ba3 {[%clk 0:01:54]}  Nc6 {[%clk 0:02:29]} 18. Ng5 {[%clk 0:01:49]}  Bf8 {[%clk 0:01:57]} 19. Bxf8 {[%clk 0:01:13]}  Rxf8 {[%clk 0:01:56]} 20. Bxc6 {[%clk 0:01:04]}  bxc6 {[%clk 0:01:56]} 21. Rab1 {[%clk 0:01:04]}  Qb7 {[%clk 0:01:42]} 22. Ne4 {[%clk 0:01:01]}  Bf5 {[%clk 0:01:39]} 23. c5 {[%clk 0:00:34]}  Bxe4 {[%clk 0:01:14]} 24. Rxe4 {[%clk 0:00:34]}  Qe7 {[%clk 0:01:15]} 25. Rbe1 {[%clk 0:00:34]}  Qxc5 {[%clk 0:01:12]} 26. Rxe5 {[%clk 0:00:33]}  Qb4 {[%clk 0:01:13]} 27. Qxb4 {[%clk 0:00:33]}  axb4 {[%clk 0:01:13]} 28. a5 {[%clk 0:00:25]}  Ra6 {[%clk 0:00:52]} 29. Rb1 {[%clk 0:00:22]}  f6 {[%clk 0:00:48]} 30. Rc5 {[%clk 0:00:22]} 1-0


[Site "https://www.chess.com"]

[Event "Titled Tuesday Blitz May 03 Early 2022"]
[White "Lohani, Sujana"]
[Black "Manon, Reja Neer"]
[WhiteFideId "12311987"]
[BlackFideId "10224009"]
[WhiteElo "1691"]
[BlackElo "1911"]
[Result "1-0"]
[Round "06"]
[TimeControl "180+1"]
[Date "2022.05.03"]
[WhiteClock "0:00:05"]
[BlackClock "0:00:07"]

1. e4 {[%clk 0:02:01]}  c6 {[%clk 0:02:40]} 2. d4 {[%clk 0:01:56]}  d5 {[%clk 0:02:40]} 3. e5 {[%clk 0:01:54]}  Bf5 {[%clk 0:02:40]} 4. g4 {[%clk 0:01:54]}  Bg6 {[%clk 0:02:39]} 5. f4 {[%clk 0:01:54]}  Be4 {[%clk 0:02:36]} 6. Nf3 {[%clk 0:01:54]}  h5 {[%clk 0:02:33]} 7. g5 {[%clk 0:01:48]}  e6 {[%clk 0:02:29]} 8. Bd3 {[%clk 0:01:48]}  Ne7 {[%clk 0:02:21]} 9. Bxe4 {[%clk 0:01:48]}  dxe4 {[%clk 0:02:21]} 10. Nh4 {[%clk 0:01:40]}  c5 {[%clk 0:02:10]} 11. Nc3 {[%clk 0:01:29]}  cxd4 {[%clk 0:02:05]} 12. Nxe4 {[%clk 0:01:29]}  Nec6 {[%clk 0:01:55]} 13. Bd2 {[%clk 0:01:19]}  Na6 {[%clk 0:01:51]} 14. Qe2 {[%clk 0:01:17]}  Qb6 {[%clk 0:01:43]} 15. O-O-O {[%clk 0:01:15]}  O-O-O {[%clk 0:01:29]} 16. Kb1 {[%clk 0:01:11]}  Ba3 {[%clk 0:01:21]} 17. Bc1 {[%clk 0:01:07]}  g6 {[%clk 0:01:01]} 18. Nf3 {[%clk 0:01:05]}  Be7 {[%clk 0:00:51]} 19. Nd6+ {[%clk 0:00:48]}  Bxd6 {[%clk 0:00:38]} 20. exd6 {[%clk 0:00:48]}  Rxd6 {[%clk 0:00:39]} 21. b3 {[%clk 0:00:35]}  Nc7 {[%clk 0:00:36]} 22. Bb2 {[%clk 0:00:34]}  Rhd8 {[%clk 0:00:36]} 23. Qe4 {[%clk 0:00:26]}  a5 {[%clk 0:00:21]} 24. a4 {[%clk 0:00:23]}  Na6 {[%clk 0:00:18]} 25. Rd2 {[%clk 0:00:17]}  Nc5 {[%clk 0:00:14]} 26. Qe2 {[%clk 0:00:13]}  d3 {[%clk 0:00:05]} 27. cxd3 {[%clk 0:00:11]}  Qxb3 {[%clk 0:00:05]} 28. d4 {[%clk 0:00:10]}  Nb4 {[%clk 0:00:05]} 29. dxc5 {[%clk 0:00:08]}  Rxd2 {[%clk 0:00:05]} 30. Nxd2 {[%clk 0:00:07]}  Qc2+ {[%clk 0:00:06]} 31. Ka1 {[%clk 0:00:06]}  Qxa4+ {[%clk 0:00:06]} 32. Kb1 {[%clk 0:00:05]}  Qc2+ {[%clk 0:00:07]} 33. Ka1 {[%clk 0:00:05]} 1-0


[Site "https://www.chess.com"]

[Event "Titled Tuesday Blitz May 03 Early 2022"]
[White "Matinian, Nikita"]
[Black "Sjugirov, Sanan"]
[WhiteFideId "24129100"]
[BlackFideId "4189302"]
[WhiteElo "2422"]
[BlackElo "2602"]
[Result "1/2-1/2"]
[Round "06"]
[TimeControl "180+1"]
[Date "2022.05.03"]
[WhiteClock "0:00:05"]
[BlackClock "0:00:02"]

1. e4 {[%clk 0:03:00]}  c6 {[%clk 0:03:00]} 2. Nc3 {[%clk 0:02:58]}  d5 {[%clk 0:03:01]} 3. Nf3 {[%clk 0:02:59]}  Bg4 {[%clk 0:03:01]} 4. h3 {[%clk 0:02:58]}  Bxf3 {[%clk 0:03:02]} 5. Qxf3 {[%clk 0:02:59]}  e6 {[%clk 0:03:02]} 6. d3 {[%clk 0:02:58]}  Nd7 {[%clk 0:03:03]} 7. g3 {[%clk 0:02:58]}  Bc5 {[%clk 0:03:03]} 8. Bg2 {[%clk 0:02:58]}  Ne7 {[%clk 0:03:04]} 9. O-O {[%clk 0:02:58]}  O-O {[%clk 0:03:05]} 10. Qe2 {[%clk 0:02:56]}  f5 {[%clk 0:03:05]} 11. Bg5 {[%clk 0:02:53]}  h6 {[%clk 0:02:33]} 12. Bxe7 {[%clk 0:02:50]}  Qxe7 {[%clk 0:02:34]} 13. exf5 {[%clk 0:02:50]}  exf5 {[%clk 0:02:35]} 14. Qxe7 {[%clk 0:02:48]}  Bxe7 {[%clk 0:02:36]} 15. Rfe1 {[%clk 0:02:48]}  Bf6 {[%clk 0:02:36]} 16. Ne2 {[%clk 0:02:43]}  g5 {[%clk 0:02:31]} 17. c3 {[%clk 0:02:42]}  Rae8 {[%clk 0:02:29]} 18. Kf1 {[%clk 0:02:19]}  Nc5 {[%clk 0:02:28]} 19. Red1 {[%clk 0:02:04]}  Re7 {[%clk 0:02:19]} 20. d4 {[%clk 0:01:53]}  Ne4 {[%clk 0:02:17]} 21. Nc1 {[%clk 0:01:48]}  Rfe8 {[%clk 0:01:51]} 22. Nd3 {[%clk 0:01:48]}  Kg7 {[%clk 0:01:51]} 23. Bf3 {[%clk 0:01:44]}  Kg6 {[%clk 0:01:51]} 24. a4 {[%clk 0:01:33]}  h5 {[%clk 0:01:49]} 25. a5 {[%clk 0:01:32]}  g4 {[%clk 0:01:45]} 26. Bg2 {[%clk 0:01:26]}  h4 {[%clk 0:01:30]} 27. a6 {[%clk 0:01:21]}  hxg3 {[%clk 0:01:19]} 28. axb7 {[%clk 0:01:19]}  gxf2 {[%clk 0:01:10]} 29. hxg4 {[%clk 0:01:05]}  fxg4 {[%clk 0:01:05]} 30. Rxa7 {[%clk 0:00:32]}  Bh4 {[%clk 0:00:52]} 31. Bxe4+ {[%clk 0:00:19]}  Rxe4 {[%clk 0:00:48]} 32. Kg2 {[%clk 0:00:09]}  Re3 {[%clk 0:00:28]} 33. Ra8 {[%clk 0:00:07]}  Rg3+ {[%clk 0:00:26]} 34. Kh2 {[%clk 0:00:07]}  Rh3+ {[%clk 0:00:04]} 35. Kg2 {[%clk 0:00:07]}  Rg3+ {[%clk 0:00:04]} 36. Kh2 {[%clk 0:00:05]}  Rh3+ {[%clk 0:00:01]} 37. Kg2 {[%clk 0:00:05]}  Rg3+ {[%clk 0:00:02]} 1/2-1/2


[Site "https://www.chess.com"]

[Event "Titled Tuesday Blitz May 03 Early 2022"]
[White "Matveeva, Olga"]
[Black "Hnydiuk, Aleksander"]
[WhiteFideId "24107018"]
[BlackFideId "1109057"]
[WhiteElo "2083"]
[BlackElo "2374"]
[Result "0-1"]
[Round "06"]
[TimeControl "180+1"]
[Date "2022.05.03"]
[WhiteClock "0:00:43"]
[BlackClock "0:00:39"]

1. d4 {[%clk 0:03:00]}  Nf6 {[%clk 0:02:59]} 2. c4 {[%clk 0:03:00]}  g6 {[%clk 0:02:59]} 3. Nf3 {[%clk 0:03:00]}  Bg7 {[%clk 0:02:59]} 4. g3 {[%clk 0:03:01]}  O-O {[%clk 0:02:59]} 5. Bg2 {[%clk 0:03:01]}  d6 {[%clk 0:02:57]} 6. Nc3 {[%clk 0:03:01]}  Nc6 {[%clk 0:02:57]} 7. O-O {[%clk 0:03:01]}  e5 {[%clk 0:02:57]} 8. dxe5 {[%clk 0:02:54]}  dxe5 {[%clk 0:02:56]} 9. Bg5 {[%clk 0:02:54]}  Be6 {[%clk 0:02:53]} 10. Bxf6 {[%clk 0:02:33]}  Bxf6 {[%clk 0:02:48]} 11. Nd5 {[%clk 0:02:33]}  Bg7 {[%clk 0:02:44]} 12. e4 {[%clk 0:02:29]}  Bg4 {[%clk 0:02:41]} 13. h3 {[%clk 0:02:15]}  Bxf3 {[%clk 0:02:41]} 14. Qxf3 {[%clk 0:02:16]}  Nd4 {[%clk 0:02:41]} 15. Qd1 {[%clk 0:02:09]}  c6 {[%clk 0:02:41]} 16. Ne3 {[%clk 0:02:08]}  Qb6 {[%clk 0:02:36]} 17. b3 {[%clk 0:02:05]}  Rfd8 {[%clk 0:02:34]} 18. Qe1 {[%clk 0:02:02]}  a5 {[%clk 0:02:31]} 19. Kh2 {[%clk 0:01:59]}  Bf8 {[%clk 0:02:27]} 20. f4 {[%clk 0:01:55]}  a4 {[%clk 0:02:16]} 21. bxa4 {[%clk 0:01:47]}  exf4 {[%clk 0:02:06]} 22. gxf4 {[%clk 0:01:46]}  Rxa4 {[%clk 0:02:03]} 23. e5 {[%clk 0:01:29]}  Rda8 {[%clk 0:01:41]} 24. f5 {[%clk 0:01:15]}  Rxa2 {[%clk 0:01:36]} 25. Rxa2 {[%clk 0:01:15]}  Rxa2 {[%clk 0:01:36]} 26. e6 {[%clk 0:01:00]}  Qc7+ {[%clk 0:01:32]} 27. Kh1 {[%clk 0:00:59]}  Re2 {[%clk 0:01:27]} 28. Qc3 {[%clk 0:00:56]}  Bc5 {[%clk 0:01:09]} 29. exf7+ {[%clk 0:00:54]}  Qxf7 {[%clk 0:01:06]} 30. fxg6 {[%clk 0:00:53]}  Qxg6 {[%clk 0:01:05]} 31. Ng4 {[%clk 0:00:52]}  h5 {[%clk 0:00:53]} 32. Nf6+ {[%clk 0:00:51]}  Kh8 {[%clk 0:00:51]} 33. Be4 {[%clk 0:00:46]}  Rxe4 {[%clk 0:00:41]} 34. Nxe4 {[%clk 0:00:46]}  Qxe4+ {[%clk 0:00:40]} 35. Kh2 {[%clk 0:00:43]}  Qe2+ {[%clk 0:00:39]} 0-1


[Site "https://www.chess.com"]

[Event "Titled Tuesday Blitz May 03 Early 2022"]
[White "Mikhalsky, Vladimir"]
[Black "De Souza, Cristiano Gomes"]
[WhiteFideId "14144352"]
[BlackFideId "2151758"]
[WhiteElo "2301"]
[BlackElo "2068"]
[Result "1-0"]
[Round "06"]
[TimeControl "180+1"]
[Date "2022.05.03"]
[WhiteClock "0:01:38"]
[BlackClock "0:01:40"]

1. e4 {[%clk 0:02:56]}  c5 {[%clk 0:02:58]} 2. Nf3 {[%clk 0:02:55]}  d6 {[%clk 0:02:59]} 3. Bb5+ {[%clk 0:02:55]}  Bd7 {[%clk 0:02:58]} 4. Bxd7+ {[%clk 0:02:55]}  Qxd7 {[%clk 0:02:58]} 5. c4 {[%clk 0:02:55]}  Nc6 {[%clk 0:02:58]} 6. d4 {[%clk 0:02:54]}  cxd4 {[%clk 0:02:57]} 7. Nxd4 {[%clk 0:02:54]}  g6 {[%clk 0:02:58]} 8. Nc3 {[%clk 0:02:54]}  Bg7 {[%clk 0:02:58]} 9. Nc2 {[%clk 0:02:54]}  Nf6 {[%clk 0:02:58]} 10. f3 {[%clk 0:02:53]}  O-O {[%clk 0:02:59]} 11. Be3 {[%clk 0:02:53]}  Rfc8 {[%clk 0:02:58]} 12. Qd2 {[%clk 0:02:51]}  Ne5 {[%clk 0:02:56]} 13. b3 {[%clk 0:02:51]}  h5 {[%clk 0:02:50]} 14. O-O {[%clk 0:02:49]}  b6 {[%clk 0:02:46]} 15. a4 {[%clk 0:02:42]}  Kh7 {[%clk 0:02:41]} 16. a5 {[%clk 0:02:42]}  Qb7 {[%clk 0:02:32]} 17. axb6 {[%clk 0:02:34]}  axb6 {[%clk 0:02:31]} 18. Nd4 {[%clk 0:02:31]}  Nfd7 {[%clk 0:02:27]} 19. Na4 {[%clk 0:02:14]}  Nc5 {[%clk 0:02:22]} 20. Nxc5 {[%clk 0:02:11]}  bxc5 {[%clk 0:02:22]} 21. Rxa8 {[%clk 0:02:08]}  Rxa8 {[%clk 0:02:19]} 22. Nb5 {[%clk 0:02:07]}  Nc6 {[%clk 0:02:12]} 23. f4 {[%clk 0:02:03]}  Nd4 {[%clk 0:02:09]} 24. Bxd4 {[%clk 0:01:56]}  cxd4 {[%clk 0:02:09]} 25. e5 {[%clk 0:01:51]}  dxe5 {[%clk 0:02:08]} 26. fxe5 {[%clk 0:01:50]}  Qe4 {[%clk 0:01:56]} 27. Qxd4 {[%clk 0:01:44]}  Qxd4+ {[%clk 0:01:50]} 28. Nxd4 {[%clk 0:01:44]}  Bxe5 {[%clk 0:01:47]} 29. Nc6 {[%clk 0:01:41]}  Bf6 {[%clk 0:01:43]} 30. Nxe7 {[%clk 0:01:41]}  Rb8 {[%clk 0:01:40]} 31. Rxf6 {[%clk 0:01:38]} 1-0


[Site "https://www.chess.com"]

[Event "Titled Tuesday Blitz May 03 Early 2022"]
[White "Miszler, Levente"]
[Black "Camacho Collados, Jose"]
[WhiteFideId "763276"]
[BlackFideId "2265427"]
[WhiteElo "1966"]
[BlackElo "2351"]
[Result "0-1"]
[Round "06"]
[TimeControl "180+1"]
[Date "2022.05.03"]
[WhiteClock "0:01:32"]
[BlackClock "0:02:20"]

1. Nf3 {[%clk 0:03:00]}  c5 {[%clk 0:02:56]} 2. c4 {[%clk 0:02:55]}  g6 {[%clk 0:02:56]} 3. Nc3 {[%clk 0:02:53]}  Bg7 {[%clk 0:02:56]} 4. d4 {[%clk 0:02:53]}  cxd4 {[%clk 0:02:56]} 5. Nxd4 {[%clk 0:02:54]}  Nc6 {[%clk 0:02:56]} 6. Nxc6 {[%clk 0:02:55]}  bxc6 {[%clk 0:02:57]} 7. g3 {[%clk 0:02:55]}  Nf6 {[%clk 0:02:58]} 8. Bg2 {[%clk 0:02:56]}  O-O {[%clk 0:02:58]} 9. O-O {[%clk 0:02:56]}  Rb8 {[%clk 0:02:58]} 10. e4 {[%clk 0:02:55]}  Qa5 {[%clk 0:02:58]} 11. Qc2 {[%clk 0:02:53]}  d6 {[%clk 0:02:57]} 12. Be3 {[%clk 0:02:50]}  Be6 {[%clk 0:02:52]} 13. b3 {[%clk 0:02:50]}  Ng4 {[%clk 0:02:53]} 14. Bd2 {[%clk 0:02:47]}  Bd4 {[%clk 0:02:43]} 15. h3 {[%clk 0:02:45]}  Nxf2 {[%clk 0:02:36]} 16. Rxf2 {[%clk 0:02:42]}  Qe5 {[%clk 0:02:35]} 17. Qd3 {[%clk 0:02:34]}  f5 {[%clk 0:02:25]} 18. Bf4 {[%clk 0:01:50]}  Bxf2+ {[%clk 0:02:25]} 19. Kxf2 {[%clk 0:01:47]}  fxe4 {[%clk 0:02:25]} 20. Qxe4 {[%clk 0:01:45]}  g5 {[%clk 0:02:24]} 21. Qf3 {[%clk 0:01:34]}  gxf4 {[%clk 0:02:22]} 22. Re1 {[%clk 0:01:32]}  fxg3+ {[%clk 0:02:20]} 0-1


[Site "https://www.chess.com"]